fUSD/lending_fUSD_20250209
["ID","MTS","AMOUNT","RATE_DAILY","PERIOD"]
[352377614,1739068246145,-166.63524268,0.00010263,2]
[352377615,1739068246155,-527.54671132,0.00010263,2]
[352377616,1739068246164,-500.0,0.00010263,2]
[352377617,1739068246174,-350.72709668,0.00010263,2]
[352377618,1739068246184,-500.0,0.00010263,2]
[352377619,1739068246194,-500.0,0.00010263,2]
[352377620,1739068246204,-255.88952049,0.00010263,2]
[352377621,1739068246213,-500.0,0.00010263,2]
[352377622,1739068246223,-500.0,0.00010263,2]
[352377623,1739068246232,-500.0,0.00010263,2]
[352377624,1739068246242,-500.0,0.00010263,2]
[352377625,1739068246252,-500.0,0.00010263,2]
[352377626,1739068246263,-500.0,0.00010263,2]
[352377627,1739068246272,-413.6798824,0.00010263,2]
[352377628,1739068246282,-500.0,0.00010263,2]
[352377629,1739068246291,-500.0,0.00010263,2]
[352377630,1739068246301,-500.0,0.00010263,2]
[352377631,1739068246311,-500.0,0.00010263,2]
[352377632,1739068246320,-1039.13,0.00010263,2]
[352377633,1739068246329,-502.65595971,0.00010263,2]
[352377634,1739068246338,-502.96919028,0.00010263,2]
[352377635,1739068246348,-500.0,0.00010263,2]
[352377636,1739068246358,-500.0,0.00010263,2]
[352377637,1739068246367,-500.0,0.00010263,2]
[352377638,1739068246376,-500.0,0.00010263,2]
[352377639,1739068246386,-500.0,0.00010263,2]
[352377640,1739068246395,-501.31460721,0.00010263,2]
[352377641,1739068246404,-500.0,0.00010263,2]
[352377642,1739068246414,-500.0,0.00010263,2]
[352377644,1739068246423,-1045.67,0.00010263,2]
[352377646,1739068246432,-502.91872282,0.00010263,2]
[352377648,1739068246441,-500.0,0.00010263,2]
[352377650,1739068246450,-500.0,0.00010263,2]
[352377652,1739068246459,-501.61849367,0.00010263,2]
[352377654,1739068246469,-500.0,0.00010263,2]
[352377656,1739068246478,-500.0,0.00010263,2]
[352377658,1739068246487,-500.0,0.00010263,2]
[352377660,1739068246497,-500.0,0.00010263,2]
[352377662,1739068246506,-300.0,0.00010263,2]
[352377663,1739068246515,-500.0,0.00010263,2]
[352377664,1739068246525,-2505.02,0.00010263,2]
[352377665,1739068246535,-500.0,0.00010263,2]
[352377666,1739068246544,-502.2019396,0.00010263,2]
[352377667,1739068246555,-500.3621909,0.00010263,2]
[352377668,1739068246564,-500.0,0.00010263,2]
[352377669,1739068246575,-509.03668724,0.00010263,2]
[352377670,1739068246585,-501.14658812,0.00010263,2]
[352377671,1739068246594,-512.12433496,0.00010263,2]
[352377672,1739068246604,-500.0,0.00010263,2]
[352377673,1739068246614,-500.0,0.00010263,2]
[352377674,1739068246623,-500.0,0.00010263,2]
[352377675,1739068246632,-500.0,0.00010263,2]
[352377676,1739068246642,-500.20908108,0.00010263,2]
[352377677,1739068246651,-785.35,0.00010263,2]
[352377678,1739068246661,-500.0,0.00010263,2]
[352377679,1739068246670,-500.0,0.00010263,2]
[352377680,1739068246679,-500.0,0.00010263,2]
[352377681,1739068246689,-516.34830861,0.00010263,2]
[352377682,1739068246699,-500.0,0.00010263,2]
[352377683,1739068246708,-500.0,0.00010263,2]
[352377684,1739068246718,-1090.29,0.00010263,2]
[352377685,1739068246727,-500.0,0.00010263,2]
[352377686,1739068246737,-500.0,0.00010263,2]
[352377687,1739068246746,-500.0,0.00010263,2]
[352377688,1739068246756,-500.19077581,0.00010263,2]
[352377689,1739068246765,-1345.79,0.00010263,2]
[352377690,1739068246775,-504.14945953,0.00010263,2]
[352377691,1739068246785,-500.0,0.00010263,2]
[352377692,1739068246794,-637.14629386,0.00010263,2]
[352377693,1739068246803,-500.0,0.00010263,2]
[352377694,1739068246812,-500.0,0.00010263,2]
[352377695,1739068246822,-500.0,0.00010263,2]
[352377696,1739068246832,-500.0,0.00010263,2]
[352377697,1739068246844,-500.0,0.00010263,2]
[352377698,1739068246853,-500.0,0.00010263,2]
[352377699,1739068246863,-500.0,0.00010263,2]
[352377700,1739068246873,-1000.0,0.00010263,2]
[352377701,1739068246883,-500.14819478,0.00010263,2]
[352377702,1739068246892,-500.0,0.00010263,2]
[352377703,1739068246902,-500.0,0.00010263,2]
[352377704,1739068246972,-500.0,0.00010263,2]
[352377705,1739068246989,-969.66,0.00010263,2]
[352377706,1739068246999,-500.0,0.00010263,2]
[352377707,1739068247009,-500.0,0.00010263,2]
[352377708,1739068247018,-500.0,0.00010263,2]
[352377709,1739068247028,-500.0,0.00010263,2]
[352377710,1739068247038,-500.0,0.00010263,2]
[352377711,1739068247048,-497.0,0.00010263,2]
[352377712,1739068247057,-1750.99,0.00010263,2]
[352377713,1739068247067,-501.8990171,0.00010263,2]
[352377714,1739068247077,-500.0,0.00010263,2]
[352377715,1739068247087,-500.0,0.00010263,2]
[352377716,1739068247097,-500.0,0.00010263,2]
[352377717,1739068247106,-500.0,0.00010263,2]
[352377718,1739068247116,-1987.42,0.00010263,2]
[352377719,1739068247126,-500.0,0.00010263,2]
[352377720,1739068247136,-500.0,0.00010263,2]
[352377721,1739068247146,-500.0,0.00010263,2]
[352377722,1739068247155,-500.0,0.00010263,2]
[352377723,1739068247165,-500.0,0.00010263,2]
[352377724,1739068247175,-500.0,0.00010263,2]
[352377725,1739068247185,-500.0,0.00010263,2]
[352377726,1739068247195,-500.0,0.00010263,2]
[352377727,1739068247205,-500.0,0.00010263,2]
[352377728,1739068247215,-500.0,0.00010263,2]
[352377729,1739068247224,-500.0,0.00010263,2]
[352377730,1739068247234,-505.39630394,0.00010263,2]
[352377731,1739068247244,-331.21979154,0.00010263,2]
[352377732,1739068247253,-500.0,0.00010263,2]
[352377733,1739068247263,-500.0,0.00010263,2]
[352377734,1739068247274,-500.0,0.00010263,2]
[352377735,1739068247285,-500.0,0.00010263,2]
[352377736,1739068247295,-500.0,0.00010263,2]
[352377737,1739068247305,-503.06873953,0.00010263,2]
[352377738,1739068247314,-500.0,0.00010263,2]
[352377739,1739068247322,-500.0,0.00010263,2]
[352377740,1739068247332,-500.0,0.00010263,2]
[352377741,1739068247342,-500.0,0.00010263,2]
[352377742,1739068247351,-500.0,0.00010263,2]
[352377743,1739068247361,-500.0,0.00010263,2]
[352377744,1739068247371,-500.0,0.00010263,2]
[352377745,1739068247381,-500.0,0.00010263,2]
[352377746,1739068247391,-500.0,0.00010263,2]
[352377747,1739068247401,-500.0,0.00010263,2]
[352377748,1739068247411,-500.0,0.00010263,2]
[352377749,1739068247420,-500.0,0.00010263,2]
[352377750,1739068247430,-500.0,0.00010263,2]
[352377751,1739068247440,-500.0,0.00010263,2]
[352377752,1739068247450,-501.77377516,0.00010263,2]
[352377753,1739068247459,-500.0,0.00010263,2]
[352377754,1739068247469,-500.0,0.00010263,2]
[352377755,1739068247478,-500.0,0.00010263,2]
[352377756,1739068247488,-500.0,0.00010263,2]
[352377757,1739068247497,-500.0,0.00010263,2]
[352377758,1739068247508,-500.0,0.00010263,2]
[352377759,1739068247517,-500.0,0.00010263,2]
[352377760,1739068247527,-500.0,0.00010263,2]
[352377761,1739068247537,-500.0,0.00010263,2]
[352377762,1739068247547,-500.0,0.00010263,2]
[352377763,1739068247557,-500.0,0.00010263,2]
[352377764,1739068247568,-500.0,0.00010263,2]
[352377765,1739068247579,-500.0,0.00010263,2]
[352377766,1739068247588,-500.0,0.00010263,2]
[352377767,1739068247598,-500.0,0.00010263,2]
[352377768,1739068247609,-500.0,0.00010264,2]
[352377769,1739068247618,-500.0,0.00010264,2]
[352377770,1739068247628,-500.0,0.00010264,2]
[352377771,1739068247639,-517.64638023,0.00010264,2]
[352377772,1739068247649,-500.0,0.00010264,2]
[352377773,1739068247660,-500.0,0.00010264,2]
[352377774,1739068247670,-500.0,0.00010264,2]
[352377775,1739068247678,-500.0,0.00010264,2]
[352377776,1739068247688,-500.0,0.00010264,2]
[352377777,1739068247698,-500.0,0.00010264,2]
[352377778,1739068247708,-500.0,0.00010264,2]
[352377779,1739068247718,-687.79,0.00010264,2]
[352377780,1739068247729,-500.0,0.00010264,2]
[352377781,1739068247738,-607.87739811,0.00010264,2]
[352377782,1739068247748,-500.0,0.00010264,2]
[352377783,1739068247758,-500.0,0.00010264,2]
[352377784,1739068247768,-490.75461084,0.00010264,2]
[352377785,1739068247778,-500.0,0.00010264,2]
[352377786,1739068247788,-500.0,0.00010264,2]
[352377787,1739068247798,-500.0,0.00010264,2]
[352377788,1739068247808,-500.0,0.00010264,2]
[352377789,1739068247818,-500.0,0.00010264,2]
[352377790,1739068247828,-500.0,0.00010264,2]
[352377791,1739068247842,-500.0,0.00010264,2]
[352377792,1739068247852,-500.0,0.00010264,2]
[352377793,1739068247862,-940.52,0.00010264,2]
[352377794,1739068247872,-500.0,0.00010264,2]
[352377795,1739068247883,-500.0,0.00010264,2]
[352377796,1739068247894,-500.0,0.00010264,2]
[352377797,1739068247904,-572.54,0.00010264,2]
[352377798,1739068247914,-500.0,0.00010264,2]
[352377799,1739068247927,-500.0,0.00010264,2]
[352377800,1739068247937,-500.0,0.00010264,2]
[352377801,1739068247947,-500.0,0.00010264,2]
[352377802,1739068247957,-500.0,0.00010264,2]
[352377803,1739068247966,-713.14,0.00010264,2]
[352377804,1739068247976,-500.0,0.00010264,2]
[352377805,1739068247986,-789.17,0.00010264,2]
[352377806,1739068247997,-500.0,0.00010264,2]
[352377807,1739068248007,-500.0,0.00010264,2]
[352377808,1739068248018,-500.0,0.00010264,2]
[352377809,1739068248028,-500.0,0.00010264,2]
[352377810,1739068248039,-500.0,0.00010264,2]
[352377811,1739068248050,-500.0,0.00010264,2]
[352377812,1739068248060,-500.0,0.00010264,2]
[352377813,1739068248071,-500.0,0.00010264,2]
[352377814,1739068248082,-500.0,0.00010264,2]
[352377815,1739068248093,-500.0,0.00010264,2]
[352377816,1739068248103,-500.0,0.00010264,2]
[352377817,1739068248114,-500.0,0.00010264,2]
[352377818,1739068248126,-500.0,0.00010264,2]
[352377819,1739068248136,-500.0,0.00010264,2]
[352377820,1739068248148,-347.44121662,0.00010264,2]
[352377821,1739068248159,-500.0,0.00010264,2]
[352377822,1739068248170,-519.02099116,0.00010264,2]
[352377823,1739068248180,-500.0,0.00010264,2]
[352377824,1739068248191,-500.0,0.00010264,2]
[352377825,1739068248202,-604.29,0.00010264,2]
[352377826,1739068248213,-500.0,0.00010264,2]
[352377827,1739068248224,-500.0,0.00010264,2]
[352377828,1739068248235,-500.0,0.00010264,2]
[352377829,1739068248245,-500.0,0.00010264,2]
[352377830,1739068248255,-796.85,0.00010264,2]
[352377831,1739068248264,-500.0,0.00010264,2]
[352377832,1739068248274,-704.0,0.00010264,2]
[352377833,1739068248285,-500.0,0.00010264,2]
[352377834,1739068248297,-501.19786541,0.00010264,2]
[352377835,1739068248308,-500.0,0.00010264,2]
[352377836,1739068248319,-500.0,0.00010264,2]
[352377837,1739068248330,-500.0,0.00010264,2]
[352377838,1739068248340,-855.137713,0.00010264,2]
[352377839,1739068248350,-878.2,0.00010264,2]
[352377840,1739068248360,-500.0,0.00010264,2]
[352377841,1739068248369,-500.0,0.00010264,2]
[352377842,1739068248380,-500.0,0.00010264,2]
[352377843,1739068248390,-965.48681,0.00010264,2]
[352377844,1739068248400,-500.0,0.00010264,2]
[352377845,1739068248410,-500.0,0.00010264,2]
[352377846,1739068248420,-500.0,0.00010264,2]
[352377847,1739068248431,-500.0,0.00010264,2]
[352377848,1739068248442,-522.41464554,0.00010264,2]
[352377849,1739068248452,-509.33479752,0.00010264,2]
[352377850,1739068248462,-500.0,0.00010264,2]
[352377851,1739068248474,-500.0,0.00010264,2]
[352377852,1739068248485,-500.0,0.00010264,2]
[352377853,1739068248496,-540.06332005,0.00010264,2]
[352377854,1739068248507,-500.0,0.00010264,2]
[352377855,1739068248518,-500.0,0.00010264,2]
[352377856,1739068248529,-500.0,0.00010264,2]
[352377857,1739068248539,-500.0,0.00010264,2]
[352377858,1739068248550,-500.0,0.00010264,2]
[352377859,1739068248562,-502.45,0.00010264,2]
[352377860,1739068248574,-500.0,0.00010264,2]
[352377861,1739068248585,-533.688701,0.00010264,2]
[352377862,1739068248595,-500.0,0.00010264,2]
[352377863,1739068248605,-500.0,0.00010264,2]
[352377864,1739068248615,-906.91,0.00010264,2]
[352377865,1739068248626,-500.0,0.00010264,2]
[352377866,1739068248637,-520.73,0.00010264,2]
[352377867,1739068248647,-500.0,0.00010264,2]
[352377868,1739068248657,-862.92,0.00010264,2]
[352377869,1739068248667,-850.75,0.00010264,2]
[352377870,1739068248680,-500.0,0.00010264,2]
[352377871,1739068248690,-500.0,0.00010264,2]
[352377872,1739068248700,-500.0,0.00010264,2]
[352377873,1739068248710,-500.0,0.00010264,2]
[352377874,1739068248721,-500.0,0.00010264,2]
[352377875,1739068248731,-632.29,0.00010264,2]
[352377876,1739068248742,-867.75,0.00010264,2]
[352377877,1739068248753,-500.0,0.00010264,2]
[352377878,1739068248764,-500.0,0.00010264,2]
[352377879,1739068248776,-500.0,0.00010264,2]
[352377880,1739068248787,-500.0,0.00010264,2]
[352377881,1739068248800,-500.0,0.00010264,2]
[352377882,1739068248810,-657.74,0.00010264,2]
[352377883,1739068248820,-950.5,0.00010264,2]
[352377884,1739068248831,-500.0,0.00010264,2]
[352377885,1739068248845,-796.41,0.00010264,2]
[352377886,1739068248856,-500.0,0.00010264,2]
[352377887,1739068248868,-500.0,0.00010264,2]
[352377888,1739068248879,-500.0,0.00010264,2]
[352377889,1739068248889,-500.0,0.00010264,2]
[352377890,1739068248900,-500.0,0.00010264,2]
[352377891,1739068248911,-500.0,0.00010264,2]
[352377892,1739068248924,-789.95,0.00010264,2]
[352377893,1739068248935,-500.0,0.00010264,2]
[352377894,1739068248946,-500.0,0.00010264,2]
[352377895,1739068248957,-500.0,0.00010264,2]
[352377896,1739068248967,-500.0,0.00010264,2]
[352377897,1739068248977,-500.0,0.00010264,2]
[352377898,1739068248988,-500.0,0.00010264,2]
[352377899,1739068248998,-770.81,0.00010264,2]
[352377900,1739068249009,-1974.36,0.00010264,2]
[352377901,1739068249020,-796.4,0.00010264,2]
[352377902,1739068249030,-594.33,0.00010264,2]
[352377903,1739068249041,-713.04,0.00010264,2]
[352377904,1739068249051,-500.0,0.00010264,2]
[352377905,1739068249062,-500.0,0.00010264,2]
[352377906,1739068249074,-1895.12,0.00010264,2]
[352377907,1739068249085,-525.89,0.00010264,2]
[352377908,1739068249097,-500.0,0.00010264,2]
[352377909,1739068249108,-2888.1,0.00010264,2]
[352377910,1739068249119,-500.0,0.00010264,2]
[352377911,1739068249130,-1057.6,0.00010264,2]
[352377912,1739068249141,-1387.64,0.00010264,2]
[352377913,1739068249151,-500.0,0.00010264,2]
[352377914,1739068249161,-514.0,0.00010264,2]
[352377915,1739068249172,-1501.18,0.00010264,2]
[352377916,1739068249182,-1053.58,0.00010264,2]
[352377917,1739068249192,-514.54,0.00010264,2]
[352377918,1739068249203,-768.56,0.00010264,2]
[352377919,1739068249213,-535.07,0.00010264,2]
[352377920,1739068249223,-680.69,0.00010264,2]
[352377921,1739068249234,-500.0,0.00010264,2]
[352377922,1739068249245,-1231.64,0.00010264,2]
[352377923,1739068249255,-2192.35,0.00010264,2]
[352377924,1739068249266,-500.0,0.00010264,2]
[352377925,1739068249276,-586.73,0.00010264,2]
[352377926,1739068249286,-162.02028029,0.00010264,2]
[352377927,1739068249297,-1046.17,0.00010264,2]
[352377928,1739068249308,-1813.69,0.00010264,2]
[352377929,1739068249319,-500.0,0.00010264,2]
[352377930,1739068249330,-500.0,0.00010264,2]
[352377931,1739068249340,-1640.37,0.00010264,2]
[352377932,1739068249350,-669.76,0.00010264,2]
[352377933,1739068249360,-500.0,0.00010264,2]
[352377934,1739068249370,-1735.55,0.00010264,2]
[352377935,1739068249381,-912.52,0.00010264,2]
[352377936,1739068249391,-500.0,0.00010264,2]
[352377937,1739068249401,-500.0,0.00010264,2]
[352377938,1739068249411,-500.0,0.00010264,2]
[352377939,1739068249421,-500.0,0.00010264,2]
[352377940,1739068249431,-1516.41,0.00010264,2]
[352377941,1739068249441,-1011.36,0.00010264,2]
[352377942,1739068249451,-500.0,0.00010264,2]
[352377943,1739068249461,-1292.34,0.00010264,2]
[352377944,1739068249471,-500.0,0.00010264,2]
[352377945,1739068249481,-1086.04,0.00010264,2]
[352377946,1739068249491,-500.0,0.00010264,2]
[352377947,1739068249501,-500.0,0.00010264,2]
[352377948,1739068249511,-788.32,0.00010264,2]
[352377949,1739068249521,-1813.88,0.00010264,2]
[352377950,1739068249530,-2183.54,0.00010264,2]
[352377951,1739068249539,-500.0,0.00010264,2]
[352377952,1739068249550,-798.61,0.00010264,2]
[352377953,1739068249561,-1408.01,0.00010264,2]
[352377954,1739068249571,-500.0,0.00010264,2]
[352377955,1739068249582,-678.49,0.00010264,2]
[352377956,1739068249592,-500.0,0.00010264,2]
[352377957,1739068249602,-1409.7,0.00010264,2]
[352377958,1739068249614,-967.29,0.00010264,2]
[352377959,1739068249624,-500.0,0.00010264,2]
[352377960,1739068249634,-500.0,0.00010264,2]
[352377961,1739068249644,-645.64,0.00010264,2]
[352377962,1739068249654,-695.06,0.00010264,2]
[352377963,1739068249664,-500.0,0.00010264,2]
[352377964,1739068249675,-951.2,0.00010264,2]
[352377965,1739068249685,-1002.71,0.00010264,2]
[352377966,1739068249695,-500.0,0.00010264,2]
[352377967,1739068249706,-1894.78,0.00010264,2]
[352377968,1739068249715,-500.0,0.00010264,2]
[352377969,1739068249725,-2146.73,0.00010264,2]
[352377970,1739068249735,-1508.57,0.00010264,2]
[352377971,1739068249744,-3646.49,0.00010264,2]
[352377972,1739068249754,-735.05,0.00010264,2]
[352377973,1739068249764,-500.0,0.00010264,2]
[352377974,1739068249774,-2412.9,0.00010264,2]
[352377975,1739068249783,-749.05,0.00010264,2]
[352377976,1739068249794,-1730.37,0.00010264,2]
[352377977,1739068249804,-984.54,0.00010264,2]
[352377978,1739068249814,-500.0,0.00010264,2]
[352377979,1739068249824,-2918.7,0.00010264,2]
[352377980,1739068249834,-500.0,0.00010264,2]
[352377981,1739068249847,-988.0,0.00010264,2]
[352377982,1739068249856,-967.87,0.00010264,2]
[352377983,1739068249866,-500.0,0.00010264,2]
[352377984,1739068249876,-500.0,0.00010264,2]
[352377985,1739068249886,-500.0,0.00010264,2]
[352377986,1739068249897,-500.0,0.00010264,2]
[352377987,1739068249907,-509.19,0.00010264,2]
[352377988,1739068249922,-500.0,0.00010264,2]
[352377989,1739068249932,-638.52,0.00010264,2]
[352377990,1739068249942,-1138.87,0.00010264,2]
[352377991,1739068249952,-570.46,0.00010264,2]
[352377992,1739068249962,-1633.4,0.00010264,2]
[352377993,1739068249972,-576.40982251,0.00010264,2]
[352377994,1739068249982,-803.83,0.00010264,2]
[352377995,1739068249991,-500.0,0.00010264,2]
[352377996,1739068250001,-500.0,0.00010264,2]
[352377997,1739068250011,-500.0,0.00010264,2]
[352377998,1739068250021,-500.0,0.00010264,2]
[352377999,1739068250030,-1288.74,0.00010264,2]
[352378000,1739068250040,-1711.72,0.00010264,2]
[352378001,1739068250050,-1257.42,0.00010264,2]
[352378002,1739068250061,-500.0,0.00010264,2]
[352378003,1739068250070,-1369.94,0.00010264,2]
[352378004,1739068250080,-633.01,0.00010264,2]
[352378005,1739068250089,-1214.08,0.00010264,2]
[352378006,1739068250099,-630.24,0.00010264,2]
[352378007,1739068250108,-548.7,0.00010264,2]
[352378008,1739068250118,-1405.68,0.00010264,2]
[352378009,1739068250128,-500.0,0.00010264,2]
[352378010,1739068250137,-1452.51,0.00010264,2]
[352378011,1739068250147,-1705.78,0.00010264,2]
[352378012,1739068250156,-500.0,0.00010264,2]
[352378013,1739068250166,-621.33,0.00010264,2]
[352378014,1739068250175,-523.74613792,0.00010264,2]
[352378015,1739068250184,-1951.52,0.00010264,2]
[352378016,1739068250194,-603.4,0.00010264,2]
[352378017,1739068250203,-500.0,0.00010264,2]
[352378018,1739068250213,-500.0,0.00010264,2]
[352378019,1739068250224,-500.0,0.00010264,2]
[352378020,1739068250234,-2275.81,0.00010264,2]
[352378021,1739068250243,-500.0,0.00010264,2]
[352378022,1739068250261,-1151.28,0.00010264,2]
[352378023,1739068250276,-500.0,0.00010264,2]
[352378024,1739068250286,-500.0,0.00010264,2]
[352378025,1739068250296,-5115.12,0.00010264,2]
[352378026,1739068250306,-500.0,0.00010264,2]
[352378027,1739068250316,-500.0,0.00010265,2]
[352378028,1739068250325,-286.96423145,0.00010265,2]
[352378029,1739068250334,-500.0,0.00010265,2]
[352378030,1739068250344,-500.0,0.00010265,2]
[352378031,1739068250353,-292.42149445,0.00010265,2]
[352378032,1739068250363,-561.78549107,0.00010265,2]
[352378033,1739068250372,-505.88035807,0.00010265,2]
[352378034,1739068250381,-509.90488814,0.00010265,2]
[352378035,1739068250392,-500.0,0.00010265,2]
[352378036,1739068250401,-505.7412866,0.00010265,2]
[352378037,1739068250411,-500.0,0.00010265,2]
[352378038,1739068250420,-504.21430174,0.00010265,2]
[352378039,1739068250429,-500.0,0.00010265,2]
[352378040,1739068250438,-500.0,0.00010265,2]
[352378041,1739068250448,-500.0,0.00010265,2]
[352378042,1739068250457,-500.0,0.00010265,2]
[352378043,1739068250467,-500.0,0.00010265,2]
[352378044,1739068250476,-500.0,0.00010265,2]
[352378045,1739068250485,-500.0,0.00010265,2]
[352378046,1739068250495,-500.0,0.00010265,2]
[352378047,1739068250504,-500.0,0.00010265,2]
[352378048,1739068250514,-500.0,0.00010265,2]
[352378049,1739068250523,-322.59632234,0.00010265,2]
[352378050,1739068250532,-500.0,0.00010265,2]
[352378051,1739068250542,-500.0,0.00010265,2]
[352378052,1739068250551,-500.0,0.00010265,2]
[352378053,1739068250560,-500.0,0.00010265,2]
[352378054,1739068250570,-500.0,0.00010265,2]
[352378055,1739068250579,-500.0,0.00010265,2]
[352378056,1739068250588,-500.0,0.00010265,2]
[352378057,1739068250598,-500.0,0.00010265,2]
[352378058,1739068250608,-500.0,0.00010265,2]
[352378059,1739068250617,-500.0,0.00010265,2]
[352378060,1739068250626,-500.0,0.00010265,2]
[352378061,1739068250635,-500.0,0.00010265,2]
[352378062,1739068250644,-500.0,0.00010265,2]
[352378063,1739068250654,-500.0,0.00010265,2]
[352378064,1739068250663,-308.94471896,0.00010265,2]
[352378065,1739068250673,-500.0,0.00010265,2]
[352378066,1739068250682,-500.0,0.00010265,2]
[352378067,1739068250691,-500.0,0.00010265,2]
[352378068,1739068250701,-505.04958734,0.00010265,2]
[352378069,1739068250711,-500.0,0.00010265,2]
[352378070,1739068250720,-500.0,0.00010265,2]
[352378071,1739068250730,-500.0,0.00010265,2]
[352378072,1739068250883,-500.0,0.00010265,2]
[352378073,1739068250910,-379.62,0.00010266,2]
[352378074,1739068250924,-506.16335473,0.00010273,2]
[352378075,1739068250934,-502.38917382,0.00010273,2]
[352378076,1739068250944,-502.39430917,0.00010273,2]
[352378077,1739068250954,-161.39708242,0.00010273,2]
[352378078,1739068250965,-785.18,0.00010273,2]
[352378079,1739068250976,-644.68,0.00010273,2]
[352378080,1739068250985,-646.35,0.00010273,2]
[352378081,1739068250996,-500.0,0.00010273,2]
[352378082,1739068251007,-1506.13,0.00010273,2]
[352378083,1739068251016,-1265.04,0.00010273,2]
[352378084,1739068251026,-500.0,0.00010273,2]
[352378085,1739068251035,-1598.62,0.00010273,2]
[352378086,1739068251047,-1741.99,0.00010273,2]
[352378087,1739068251056,-500.0,0.00010273,2]
[352378088,1739068251067,-500.0,0.00010273,2]
[352378089,1739068251076,-1264.68,0.00010273,2]
[352378090,1739068251091,-1332.83,0.00010273,2]
[352378091,1739068251102,-1408.8,0.00010273,2]
[352378092,1739068251111,-2329.97,0.00010273,2]
[352378093,1739068251120,-1536.78,0.00010273,2]
[352378094,1739068251129,-704.79,0.00010273,2]
[352378095,1739068251140,-500.0,0.00010273,2]
[352378096,1739068251149,-2199.8,0.00010273,2]
[352378097,1739068251159,-846.8,0.00010273,2]
[352378098,1739068251168,-500.0,0.00010273,2]
[352378099,1739068251178,-500.0,0.00010273,2]
[352378100,1739068251187,-500.0,0.00010273,2]
[352378101,1739068251196,-500.0,0.00010273,2]
[352378102,1739068251206,-540.53,0.00010273,2]
[352378103,1739068251215,-500.0,0.00010273,2]
[352378104,1739068251224,-726.76,0.00010273,2]
[352378105,1739068251234,-1126.43,0.00010273,2]
[352378106,1739068251243,-500.0,0.00010273,2]
[352378107,1739068251252,-500.0,0.00010273,2]
[352378108,1739068251261,-500.0,0.00010273,2]
[352378109,1739068251270,-500.0,0.00010273,2]
[352378110,1739068251279,-500.0,0.00010273,2]
[352378111,1739068251288,-684.49724545,0.00010296,2]
[352378112,1739068251298,-133296.17192343,0.000103,2]
[352378113,1739068251307,-113731.19123388,0.000104,2]
[352378114,1739068251316,-500.0,0.000104,2]
[352378115,1739068251326,-469.24376669,0.000104,2]
[352378116,1739068251335,-500.0,0.000104,2]
[352378117,1739068251343,-497.71869996,0.000104,2]
[352378118,1739068251353,-500.0,0.000104,2]
[352378119,1739068251364,-500.0,0.000104,2]
[352378120,1739068251373,-356.57882565,0.000104,2]
[352378121,1739068251385,-500.0,0.000104,2]
[352378122,1739068251401,-500.0,0.000104,2]
[352378123,1739068251410,-500.0,0.000104,2]